Workbook

Sheet BOQ 1
A2: ITEM NO | B2: DESCRIPTION | C2: UNIT | D2: ANNUAL QUANTITY | E2: RATE | F2: AMOUNT
B5: BILL 1
B7: ADMINISTRATION
B9: NOTE: Tenderers are advised to study the Model Preambles for Trades
B10: before pricing this bill
B12: NOTE: Unless otherwise stated herein, all rates should include
B13: compensation for costs to execute the works whatever quantity is required
B14: and should provide for establishment, preliminary and general costs, and
B15: all other costs associated with the execution and supervision.
B17: The Client reserves the right to negotiate mutually agreed discounts on
B18: tendered rates for large quantities
B20: PROVISIONAL ADMINISTRATIVE COSTS
A23: 1 | B23: Occupational Health and Safety Compliance - prepare & maintain a compliant safety file at all times, comply with all leglislative and regulated requirements including attending to internal and external audits | C23: month | D23: 12.00 | E23: R | F23: R
A25: 2 | B25: Occupational Health and Safety Compliance - Provide for propper PPE for all works | C25: month | D25: 12.00 | E25: R | F25: R
A27: 3 | B27: Insurance Requirments | C27: month | D27: 12.00 | E27: R | F27: R
B31: MILEAGE
A33: 4 | B33: Mileage for on site travel and scheduled procurments/tasks required by ACSA | C33: km | D33: =2000*12 -> 24000.00 | E33: R | F33: R
B34: Note: Excludes travel to and from site for preventative maintenance works and planned works.
B35: Note: Excludes travel to and from site for night works
B36: Note: Excludes travel to and from site for call outs
B56: BILL 1 - TOTAL CARRIED TO ANNUAL SUMMARY | F56: R

Sheet BOQ 2
A2: ITEM NO | B2: DESCRIPTION | C2: UNIT | D2: ANNUAL QUANTITY | E2: RATE | F2: AMOUNT
B5: BILL 2
B7: PROVISIONAL CALL OUTS & LABOUR SCHEDULE (PROVISIONAL)
B9: NOTE: Tenderers are advised to study the Model Preambles for Trades
B10: before pricing this bill
B12: NOTE: Unless otherwise stated herein, all rates should include
B13: compensation for costs to execute the works whatever quantity is required
B14: and should provide for establishment, preliminary and general costs, and
B15: all other costs associated with the execution and supervision.
B17: The Client reserves the right to negotiate mutually agreed discounts on
B18: tendered rates for large quantities
B20: CALL OUTS
B22: Emergency Call Outs: Emergency - 45 minute response time from time of call at any time for the duration of the contract. Call outs only apply when the contractor is not scheduled to be on site.
B23: Urgent Call Outs: Urgent - 24 Hour response time from time of call at any time for the duration of the contract. Call outs only apply when the contractor is not scheduled to be on site.
A26: 1 | B26: Emergency Call Outs | C26: No | D26: 12.00 | E26: R | F26: R
A28: 2 | B28: Urgent Call Outs | C28: No | D28: 6.00 | E28: R | F28: R
B32: LABOUR SCHEDULE
B34: Operating Times
B35: Normal Hours: Regarded as between 06:00am and 18:00pm weekdays
B36: After Hours: Regarded as between 06:00pm and 06:00am weekdays
B37: After Hours: Regarded as between 06:00am and 23:59pm saturdays
B38: Sundays & Public Holidays: Regarded as Between 0:00am and 23:59pm on Sundays and Public Holidays
B39: Night Work: Where work is located in operational areas / impacted by passenger traffic, then work will only be permitted to commence after the last operational flight and once the affected areas have been vacated by passengers. The time of the last flight will vary each day.
B41: Contract Manager / Supervisor
A42: 3 | B42: Normal Hours | C42: hrs | D42: 8.00 | E42: R | F42: R
A43: 4 | B43: After Hours | C43: hrs | D43: =((8*2))*12 -> 192.00 | E43: R | F43: R
A44: 5 | B44: Sundays & Public Holidays | C44: hrs | D44: =((8*1))*6 -> 48.00 | E44: R | F44: R
B46: Handyman
A47: 6 | B47: Normal Hours | C47: hrs | D47: 8.00 | E47: R | F47: R
A48: 7 | B48: After Hours | C48: hrs | D48: =((8*1))*12 -> 96.00 | E48: R | F48: R
A49: 8 | B49: Sundays & Public Holidays | C49: hrs | D49: =((8*1))*6 -> 48.00 | E49: R | F49: R
B54: General Assistant
A55: 9 | B55: Normal Hours | C55: hrs | D55: =((8*6))*12 -> 576.00 | E55: R | F55: R
A56: 10 | B56: After Hours | C56: hrs | D56: =((8*4))*12 -> 384.00 | E56: R | F56: R
A57: 11 | B57: Sundays & Public Holidays | C57: hrs | D57: =((8*1))*6 -> 48.00 | E57: R | F57: R
B59: Brick Layer
A60: 12 | B60: Normal Hours | C60: hrs | D60: =8*12 -> 96.00 | E60: R | F60: R
A61: 13 | B61: After Hours | C61: hrs | D61: 1.00 | E61: R | F61: R
A62: 14 | B62: Sundays & Public Holidays | C62: hrs | D62: 1.00 | E62: R | F62: R
B64: Carpenter
A65: 15 | B65: Normal Hours | C65: hrs | D65: =8*12 -> 96.00 | E65: R | F65: R
A66: 16 | B66: After Hours | C66: hrs | D66: 1.00 | E66: R | F66: R
A67: 17 | B67: Sundays & Public Holidays | C67: hrs | D67: 1.00 | E67: R | F67: R
B69: Tiler
A70: 18 | B70: Normal Hours | C70: hrs | D70: =8*12 -> 96.00 | E70: R | F70: R
A71: 19 | B71: After Hours | C71: hrs | D71: 1.00 | E71: R | F71: R
A72: 20 | B72: Sundays & Public Holidays | C72: hrs | D72: 1.00 | E72: R | F72: R
B76: Plasterer
A77: 21 | B77: Normal Hours | C77: hrs | D77: =8*12 -> 96.00 | E77: R | F77: R
A78: 22 | B78: After Hours | C78: hrs | D78: 1.00 | E78: R | F78: R
A79: 23 | B79: Sundays & Public Holidays | C79: hrs | D79: 1.00 | E79: R | F79: R
B81: Painter
A82: 24 | B82: Normal Hours | C82: hrs | D82: =8*12 -> 96.00 | E82: R | F82: R
A83: 25 | B83: After Hours | C83: hrs | D83: 1.00 | E83: R | F83: R
A84: 26 | B84: Sundays & Public Holidays | C84: hrs | D84: 1.00 | E84: R | F84: R
B86: Welder
A87: 27 | B87: Normal Hours | C87: hrs | D87: =24*12 -> 288.00 | E87: R | F87: R
A88: 28 | B88: After Hours | C88: hrs | D88: =16*12 -> 192.00 | E88: R | F88: R
A89: 29 | B89: Sundays & Public Holidays | C89: hrs | D89: 8.00 | E89: R | F89: R
B112: BILL 2 - TOTAL CARRIED TO ANNUAL SUMMARY | F112: R

Sheet BOQ3
A2: ITEM NO | B2: DESCRIPTION | C2: UNIT | D2: ANNUAL QUANTITY | E2: RATE | F2: AMOUNT
B5: BILL 3
B7: PREVENTATIVE MAINTENANCE SCHEDULES
B9: NOTE: Tenderers are advised to study the Model Preambles for Trades
B10: before pricing this bill
B12: NOTE: Unless otherwise stated herein, all rates should include
B13: compensation for costs to execute the works whatever quantity is required
B14: and should provide for establishment, preliminary and general costs, and
B15: all other costs associated with the execution and supervision.
B17: The Client reserves the right to negotiate mutually agreed discounts on
B18: tendered rates for large quantities
B22: PROVISIONAL PREVENTATIVE MAINTENANCE SCHEDULES
B24: Contractor is to refer to the attached scope of works for detailed requirements for executing the preventative maintenance schedules.
B26: Carry out weekly inspection & complete required maintenance tasks for schedules issued on a weekly basis or as matters arise
B27: Carry out monthly inspection & complete required maintenance tasks for schedules issued on a monthly basis.
B28: Carry out quarterly inspection & complete required maintenance tasks for schedules issued on a quarterly basis.
B29: Carry out all handy man related work (Refer to attached specification regarding inclusions, note that for any matter or item that may arise which is not schedueld in the boq, than that item of work will be executed by the on site handy man on duty.)
A31: 1 | B31: Day Works ( 1 x Supervisor & 1 x Handy Man & 1 x General Assistant - 5 Times per week - Mon - Fri - 08:00am 16:30 - 8 hour shift) | C31: week | D31: 52.00 | E31: R | F31: R | I31: =45000*12 -> 540000
A33: 2 | B33: Night Works ( 1 x Handy Man & 1 General Assistant - 5 Times per week - Mon - Fri - 19:00pm - 05:00am - 9 hour shift) | C33: week | D33: 52.00 | E33: R | F33: R
B36: Note: Average of 4,35 weeks per month, A week in this section is regarded as the period between Monday & Friday. Pro-rata calculation will apply where a full week has not been completed in any given month
B50: BILL 3 - TOTAL CARRIED TO ANNUAL SUMMARY | F50: R

Sheet BOQ4
A2: ITEM NO | B2: DESCRIPTION | C2: UNIT | D2: ANNUAL QUANTITY | E2: RATE | F2: AMOUNT
B5: BILL 4
B7: PROVISIONAL - COMMON MAINTENANCE WORKS
B9: NOTE: Tenderers are advised to study the Model Preambles for Trades
B10: before pricing this bill
B12: NOTE: Unless otherwise stated herein, all rates should include
B13: compensation for costs to execute the works whatever quantity is required
B14: and should provide for establishment, preliminary and general costs, and
B15: all other costs associated with the execution and supervision.
B17: The Client reserves the right to negotiate mutually agreed discounts on
B18: tendered rates for large quantities
B20: WATERPROOFING
A22: 1 | B22: Identify and repair leaks on metal roof sheeting in patches. | C22: m2 | D22: 450.00 | E22: R | F22: R
A23: 2 | B23: Ditto for after hours work. | C23: m2 | D23: 150.00 | E23: R | F23: R
B24: Materials paid for on a proven cost basis. (3rd party procurment)
B26: ROOF COVERINGS ETC
A28: 3 | B28: Clearing of gutters free from (Stones, sand, debris, seeds, vegetation, plastic, paper etc). | C28: m | D28: 500.00 | E28: R | F28: R
A29: 4 | B29: Ditto for after hours work. | C29: m | D29: 150.00 | E29: R | F29: R
A31: 5 | B31: Unblocking and flushing of down pipes up to 200mm diameter including cleaning out debris flushed into the storm water system. Down pipe lengths vary and will be up to 25m in length per down pipe | C31: no | D31: 15.00 | E31: R | F31: R
A32: 6 | B32: Ditto for after hours work. | C32: no | D32: 25.00 | E32: R | F32: R
A34: 7 | B34: Repairs to damaged gutters not exceeding 500mm in width / diameter | C34: m | D34: 50.00 | E34: R | F34: R
A35: 8 | B35: Ditto for after hours work. | C35: m | D35: 25.00 | E35: R | F35: R
B36: Materials paid for on a proven cost basis. (3rd party procurment)
A38: 9 | B38: Repairs to damaged down pipes in varying diameters | C38: m | D38: 100.00 | E38: R | F38: R
A39: 10 | B39: Ditto for after hours work. | C39: m | D39: 25.00 | E39: R | F39: R
B40: Materials paid for on a proven cost basis. (3rd party procurment)
B42: CARPENTRY & JOINERY
A44: 11 | B44: Supply and install new timber skirting not exceeding 150mm width - Plugged or glued to walls | C44: m | D44: 50.00 | E44: R | F44: R
A45: 12 | B45: Ditto for after hours work. | C45: m | D45: 30.00 | E45: R | F45: R
B46: Materials paid for on a proven cost basis. (3rd party procurment)
A48: 13 | B48: Fabricate, supply and install timber cills | C48: m2 | D48: 100.00 | E48: R | F48: R
A49: 14 | B49: Ditto for after hours work. | C49: m2 | D49: 10.00 | E49: R | F49: R
B50: Materials paid for on a proven cost basis. (3rd party procurment)
B51: repair to passenger seat footing | C51: no | D51: 40.00
B53: Ceiling repairs | C53: m2 | D53: 1500.00 | E53: R | F53: R
B59: METAL WORK
A61: 15 | B61: Install new / Refix wall and floor trims / skirtings / stair nosings / non - slip floor treads | C61: m | D61: 30.00 | E61: R | F61: R
A62: 16 | B62: Ditto for after hours work. | C62: m | D62: 20.00 | E62: R | F62: R
B63: Materials paid for on a proven cost basis. (3rd party procurment)
A65: 17 | B65: Refix / Realign steel trasnformer/substation rooom door (Single door) | C65: no | D65: 4.00 | E65: R | F65: R
A66: 18 | B66: Ditto for after hours work. | C66: no | D66: 1.00 | E66: R | F66: R
A68: 19 | B68: Refix / Realign steel trasnformer/substation rooom door (Double door) | C68: no | D68: 4.00 | E68: R | F68: R
A69: 20 | B69: Ditto for after hours work. | C69: no | D69: 1.00 | E69: R | F69: R
A71: 21 | B71: Supply and install hot dipped galvanized mild steel / Stainless Steel / Plastic chain with required fixings | C71: m | D71: 150.00 | E71: R | F71: R
A72: 22 | B72: Ditto for after hours work. | C72: m | D72: 50.00 | E72: R | F72: R
B73: Materials paid for on a proven cost basis. (3rd party procurment)
B75: TILING
B77: NOTE: The tiles required will be retrieved from ACSA storage on site or will be purchased through third party procurment.
B78: NOTE: Tiles retrieved from ACSA storage will be issued to the contractor for installation. The contractor must not include the cost of supplying the tile in the tendered rates.
B79: Materials paid for on a proven cost basis. (3rd party procurment)
B81: Floors
A83: 23 | B83: Replace loose or damaged ceramic tiles in patches not exceeding 5 m2 per location by carefully removing damaged tiling and dispose. Remove all residual tile adhesive on floor and prepare the floors to receive replacement tiles and fix replacement tiles. | C83: m2 | D83: 500.00 | E83: R | F83: R
A84: 24 | B84: Ditto for after hours work. | C84: m2 | D84: 240.00 | E84: R | F84: R
B85: Materials paid for on a proven cost basis. (3rd party procurment)
A87: 25 | B87: Replace loose or damaged poercelain tiles in patches not exceeding 5 m2 per location by carefully removing damaged tiling and dispose. Remove all residual tile adhesive on floor and prepare the floors to receive replacement tiles and fix replacement tiles. | C87: m2 | D87: 25.00 | E87: R | F87: R
A88: 26 | B88: Ditto for after hours work. | C88: m2 | D88: 25.00 | E88: R | F88: R
B89: Materials paid for on a proven cost basis. (3rd party procurment)
B91: Walls
A93: 27 | B93: Replace loose or damaged ceramic tiles in patches not exceeding 5 m2 per location by carefully removing damaged tiling and dispose. Remove all residual tile adhesive on walls and prepare the walls to receive replacement tiles and fix replacement tiles. | C93: m2 | D93: 250.00 | E93: R | F93: R
A94: 28 | B94: Ditto for after hours work. | C94: m2 | D94: 30.00 | E94: R | F94: R
B95: Materials paid for on a proven cost basis. (3rd party procurment)
A97: 29 | B97: Replace loose or damaged porcelain tiles in patches not exceeding 5 m2 per location by carefully removing damaged tiling and dispose. Remove all residual tile adhesive on walls and prepare the walls to receive replacement tiles and fix replacement tiles. | C97: m2 | D97: 25.00 | E97: R | F97: R
A98: 30 | B98: Ditto for after hours work. | C98: m2 | D98: 10.00 | E98: R | F98: R
B99: Materials paid for on a proven cost basis. (3rd party procurment)
A101: 31 | B101: Clean and remove old and flaking grout and replace with new to match existing | C101: m2 | D101: 299.00 | E101: R | F101: R
A102: 32 | B102: Ditto for after hours work. | C102: m2 | D102: 202.00 | E102: R | F102: R
B103: Materials paid for on a proven cost basis. (3rd party procurment)
B105: PAINTWORK
B107: NOTE: Tenderers are advised to study the Model Preambles for Trades
B108: before pricing this bill
B110: NOTE: Unless otherwise stated herein, all rates should include
B111: compensation for costs to execute the works whatever quantity is required
B112: and should provide for establishment, preliminary and general costs, and
B113: all other costs associated with the execution and supervision.
B115: NOTE: Establishment includes all necessary sundries which includes but is not limited to: Brushes, rollers, extensions, ladders, scrapers, sand paper, spot sheets, masking tape etc
B117: NOTE: All paint products utilised must be SABS/SANS approved.
B118: All paint products utilised must be suitable for use in commercial/industrial applications. Acceptable products include proffesional or trade ranges from paint manufactureres. All products utilised must be suited to the application in which it will be used. Paint utilised must perform in accordance with applicable and relevant SANS codes
B120: The client reserves the right to reject paint coatings that perform poorly / fail due to inferior quality.
B122: The Client reserves the right to negotiate mutually agreed discounts on
B123: tendered rates for large quantities
B125: PREPARATORY WORK TO EXISTING WORK
B127: Previously painted plastered surfaces
B129: Surfaces shall be thoroughly washed down and allowed to dry completely
B130: before any paint is applied. Blistered or peeling paint shall be completely
B131: removed and cracks shall be opened and filled with a suitable filler and
B132: finished smooth
B134: Previously painted metal surfaces
B136: Surfaces shall be thoroughly rubbed and cleaned down. Blistered or
B137: peeling paint shall be completely removed down to bare metal
B139: Previously painted wood surfaces
B141: Surfaces shall be thoroughly cleaned down. Blistered or peeling paint
B142: shall be completely removed and cracks and crevices shall be primed,
B143: filled with suitable filler and finished smooth
B145: PAINTWORK, ETC TO PREVIOUSLY PAINTED SURFACES
A147: 33 | B147: On internal walls | C147: m2 | D147: =75*12 -> 900.00 | E147: R | F147: R
A148: 34 | B148: Ditto for after hours work. | C148: m2 | D148: =150*12 -> 1800.00 | E148: R | F148: R
B149: Materials paid for on a proven cost basis. (3rd party procurment)
A153: 35 | B153: On external walls | C153: m2 | D153: =200*12 -> 2400.00 | E153: R | F153: R
A154: 36 | B154: Ditto for after hours work. | C154: m2 | D154: 500.00 | E154: R | F154: R
B155: Materials paid for on a proven cost basis. (3rd party procurment)
A157: 37 | B157: On ceilings and beams | C157: m2 | D157: 400.00 | E157: R | F157: R
A158: 38 | B158: Ditto for after hours work. | C158: m2 | D158: =100*12 -> 1200.00 | E158: R | F158: R
B159: Materials paid for on a proven cost basis. (3rd party procurment)
A161: 39 | B161: On partitions | C161: m2 | D161: 250.00 | E161: R | F161: R
A162: 40 | B162: Ditto for after hours work. | C162: m2 | D162: 200.00 | E162: R | F162: R
B163: Materials paid for on a proven cost basis. (3rd party procurment)
A165: 41 | B165: On narrow widths not exceeding 300mm wide | C165: m2 | D165: 150.00 | E165: R | F165: R
A166: 42 | B166: Ditto for after hours work. | C166: m2 | D166: 50.00 | E166: R | F166: R
B167: Materials paid for on a proven cost basis. (3rd party procurment)
B169: ON METAL
B171: Spot prime bare metal surfaces with zinc chromate primer & apply
B172: one undercoat & two coats alkyd paint on previously painted steel
A174: 43 | B174: On metal surfaces (doors, door frames, windows, windows with buglar bars, palisade fencing, steel barriers, balustrades, gates, grilles, burglar screens, gutters, down pipes, roof sheets, cladding sheets etc) | C174: m2 | D174: 70.00 | E174: R | F174: R
A175: 44 | B175: Ditto for after hours work. | C175: m2 | D175: 70.00 | E175: R | F175: R
B176: Materials paid for on a proven cost basis. (3rd party procurment)
A178: 45 | B178: On metal surfaces in narrow width not exceeding 300mm wide (doors, door frames, windows, windows with buglar bars, palisade fencing, steel barriers, balustrades, gates, grilles, burglar screens, gutters, down pipes, roof sheets, cladding sheets etc) | C178: m2 | D178: 70.00 | E178: R | F178: R
A179: 46 | B179: Ditto for after hours work. | C179: m2 | D179: 70.00 | E179: R | F179: R
B180: Materials paid for on a proven cost basis. (3rd party procurment)
B182: ON WOOD
B184: One coat alkyd enamel, paint on previously painted surfaces
A186: 47 | B186: On boarded panelling, boarded ceilings, doors, door frames, skirtings, cills | C186: m2 | D186: 40.00 | E186: R | F186: R
A187: 48 | B187: Ditto for after hours work. | C187: m2 | D187: 40.00 | E187: R | F187: R
B188: Materials paid for on a proven cost basis. (3rd party procurment)
B190: Three coats Matt varnish on previously varnished surfaces
A192: 49 | B192: On doors and frames | C192: m2 | D192: 20.00 | E192: R | F192: R
A193: 50 | B193: Ditto for after hours work. | C193: m2 | D193: 20.00 | E193: R | F193: R
B194: Materials paid for on a proven cost basis. (3rd party procurment)
B196: ON FLOORS
A198: 51 | B198: Prepare floors, apply one undercoat and two final coats epoxy coating to floors | C198: m2 | D198: 40.00 | E198: R | F198: R
A199: 52 | B199: Ditto for after hours work. | C199: m2 | D199: 20.00 | E199: R | F199: R
B200: Materials paid for on a proven cost basis. (3rd party procurment)
B202: ROAD MARKING
A204: 53 | B204: 100mm white line including broken lines | C204: m | D204: 1.00 | E204: R | F204: R
A205: 54 | B205: Ditto for after hours work. | C205: m | D205: 1.00 | E205: R | F205: R
B206: Materials paid for on a proven cost basis. (3rd party procurment)
A208: 55 | B208: 100mm yellow line including broken lines | C208: m | D208: 1.00 | E208: R | F208: R
A209: 56 | B209: Ditto for after hours work. | C209: m | D209: 1.00 | E209: R | F209: R
B210: Materials paid for on a proven cost basis. (3rd party procurment)
A212: 57 | B212: 200mm stop lines | C212: m | D212: 1.00 | E212: R | F212: R
A213: 58 | B213: Ditto for after hours work. | C213: m | D213: 1.00 | E213: R | F213: R
B214: Materials paid for on a proven cost basis. (3rd party procurment)
A216: 59 | B216: Pedestrian crossing | C216: m2 | D216: 1.00 | E216: R | F216: R
A217: 60 | B217: Ditto for after hours work. | C217: m2 | D217: 1.00 | E217: R | F217: R
B218: Materials paid for on a proven cost basis. (3rd party procurment)
A220: 61 | B220: 100mm red line | C220: m | D220: 1.00 | E220: R | F220: R
A221: 62 | B221: Ditto for after hours work. | C221: m | D221: 1.00 | E221: R | F221: R
B222: Materials paid for on a proven cost basis. (3rd party procurment)
A224: 63 | B224: 150mm red line | C224: m | D224: 1.00 | E224: R | F224: R
A225: 64 | B225: Ditto for after hours work. | C225: m | D225: 1.00 | E225: R | F225: R
B226: Materials paid for on a proven cost basis. (3rd party procurment)
A228: 65 | B228: Single headed arrows | C228: m2 | D228: 1.00 | E228: R | F228: R
A229: 66 | B229: Ditto for after hours work. | C229: m2 | D229: 1.00 | E229: R | F229: R
B230: Materials paid for on a proven cost basis. (3rd party procurment)
A232: 67 | B232: Double headed arrows | C232: m2 | D232: 1.00 | E232: R | F232: R
A233: 68 | B233: Ditto for after hours work. | C233: m2 | D233: 1.00 | E233: R | F233: R
B234: Materials paid for on a proven cost basis. (3rd party procurment)
A236: 69 | B236: Yield signs | C236: m2 | D236: 1.00 | E236: R | F236: R
A237: 70 | B237: Ditto for after hours work. | C237: m2 | D237: 1.00 | E237: R | F237: R
B238: Materials paid for on a proven cost basis. (3rd party procurment)
A240: 71 | B240: STOP signs | C240: m2 | D240: 1.00 | E240: R | F240: R
A241: 72 | B241: Ditto for after hours work. | C241: m2 | D241: 1.00 | E241: R | F241: R
B242: Materials paid for on a proven cost basis. (3rd party procurment)
A244: 73 | B244: No entry signs | C244: m2 | D244: 1.00 | E244: R | F244: R
A245: 74 | B245: Ditto for after hours work. | C245: m2 | D245: 1.00 | E245: R | F245: R
B246: Materials paid for on a proven cost basis. (3rd party procurment)
A248: 75 | B248: Paraplegic signs | C248: m2 | D248: 1.00 | E248: R | F248: R
A249: 76 | B249: Ditto for after hours work. | C249: m2 | D249: 1.00 | E249: R | F249: R
B250: Materials paid for on a proven cost basis. (3rd party procurment)
B252: EXTERNAL WORKS
A254: 77 | B254: Supply and install paving in patches to match existing | C254: m2 | D254: 1900.00 | E254: R | F254: R
A255: 78 | B255: Ditto for after hours work. | C255: m2 | D255: 1000.00 | E255: R | F255: R
B256: Materials paid for on a proven cost basis. (3rd party procurment)
A258: 79 | B258: Supply and install cast insitu concrete paving with decorative stone finish to match existing. | C258: m2 | D258: 200.00 | E258: R | F258: R
A259: 80 | B259: Ditto for after hours work. | C259: m2 | D259: 250.00 | E259: R | F259: R
B260: Materials paid for on a proven cost basis. (3rd party procurment)
B266: SIGNAGE
A268: 81 | B268: Replace fixings to existing signage, realign and secure signs up to 3.0m high (Excludes billboards) | C268: no | D268: 150.00 | E268: R | F268: R
A269: 82 | B269: Ditto for after hours work. | C269: no | D269: 91.00 | E269: R | F269: R
B270: Materials paid for on a proven cost basis. (3rd party procurment)
A272: 83 | B272: Replace perspex, vinyl, chromadeck sign face for existing signage, replace fixings, realign and secure signs up to 3.0m high (Excludes billboards) | C272: m2 | D272: 150.00 | E272: R | F272: R
A273: 84 | B273: Ditto for after hours work. | C273: m2 | D273: 100.00 | E273: R | F273: R
B274: Materials paid for on a proven cost basis. (3rd party procurment)
B276: Note: Where signs are located above 3m high and cannot be accessed safely by ladder then a suitable height access solution will be required. Height access solution to be paid for through 3rd party procurement, however rates for items 82,83,84 will still be applicable
B278: CARPORTS / SHADEPORTS
B280: Single Bay Carports / Shadeports
A282: 85 | B282: Supply and install fire rated shade port covering to match existing. | C282: no | D282: 100.00 | E282: R | F282: R
B283: Materials paid for on a proven cost basis. (3rd party procurement)
B285: Double Bay Carports / Shadeports
A287: 86 | B287: Supply and install fire rated shade port covering to match existing. | C287: no | D287: 20.00 | E287: R | F287: R
B288: Materials paid for on a proven cost basis. (3rd party procurement)
B290: Tripple Bay Carports / Shadeports
A292: 87 | B292: Supply and install fire rated shade port covering to match existing. | C292: no | D292: 20.00 | E292: R | F292: R
B293: Materials paid for on a proven cost basis. (3rd party procurement)
B296: Plumbing Works
B298: Jetting of sewer lines as a response to blockage | C298: m | D298: 500.00 | E298: R | F298: R
B299: Chemically treat sewer lines as a response to blockage | C299: m | D299: 250.00 | E299: R | F299: R
B300: All Plumbing on Ablution facilities including spares and repairs | C300: no | D300: 50.00 | E300: R | F300: R
B319: BILL 4 - TOTAL CARRIED TO ANNUAL SUMMARY | F319: R

Sheet BOQ 5
A1: ITEM NO | B1: DESCRIPTION | C1: UNIT | D1: ANNUAL QUANTITY | E1: RATE | F1: AMOUNT
B4: BILL 5
B6: SPECIALISED WORKS / AD HOC WORKS
B8: NOTE: Within this section of the price schedule there is no distinction made for differences in prices for works in "Normal Hours" and works at "After Hours". Bidders are to note that rates tendered in this section will be fixed regardless of the time of day that work is executed. Working times will always be determined by the operational requirements that govern a particular work area.
B10: NOTE: Tenderers are advised to study the Model Preambles for Trades
B11: before pricing this bill
B13: NOTE: Unless otherwise stated herein, all rates should include
B14: compensation for costs to execute the works whatever quantity is required
B15: and should provide for establishment, preliminary and general costs, and
B16: all other costs associated with the execution and supervision.
B18: The Client reserves the right to negotiate mutually agreed discounts on
B19: tendered rates for large quantities
B21: ALTERATIONS
B23: TEMPORARY BARRIERS, SCREENS, ETC
B25: Temporary barriers, screens, etc including removal
B26: on completion
A28: 1 | B28: Drywall barricade not exceding 2.4m high of galvanised steel channel section rails and studs covered on one side with 12,7mm gypsum plasterboard and finished with two coats interior quality PVA emulsion paint, including corners, ends, etc | C28: m | D28: 1.00 | E28: R | F28: R
B29: Materials paid for on a proven cost basis. (3rd party procurement)
A31: 2 | B31: Extra over preceding item for hollow core single door 813 x 2032mm high, including steel frame, two-lever mortice lock, primer and two coats paint | C31: No | D31: 1.00 | E31: R | F31: R
B32: Materials paid for on a proven cost basis. (3rd party procurement)
A34: 3 | B34: Hoarding between concrete floor and ceiling formed of suitable timber framing with 22mm thick shutter board | C34: m2 | D34: 1.00 | E34: R | F34: R
B35: Materials paid for on a proven cost basis. (3rd party procurement)
A37: 4 | B37: Metal sheeting hoarding 2m high fixed to steel posts at equal centres including paint to external face of sheets and posts. | C37: m2 | D37: 1.00 | E37: R | F37: R
B38: Materials paid for on a proven cost basis. (3rd party procurement)
A40: 5 | B40: Temporary 12mm shutter board protection lining to walls, floors and ceilings including removing after completion and making good to walls, floors and ceilings | C40: m2 | D40: 1.00 | E40: R | F40: R
B41: Materials paid for on a proven cost basis. (3rd party procurement)
B52: REMOVAL OF EXISTING WORK
B54: Breaking up and removing mass concrete including reinforcing and
B55: carting to approved disposal area within the airport.
A57: 6 | B57: Stairs with landings, waist, treads, risers, ramps, surface beds, strip footing, reinforced concrete etc | C57: m3 | D57: 1.00 | E57: R | F57: R
B59: Breaking down and removing existing concrete work including
B60: all steel reinforcing, steel corners bolts etc and carting to approved disposal area within the airport.
A62: 7 | B62: Concrete Columns, beams and slabs not exceeding 3m high | C62: m3 | D62: 1.00 | E62: R | F62: R
A64: 8 | B64: Manholes, bases, strip footings etc not exceeding 1.5m deep | C64: m3 | D64: 1.00 | E64: R | F64: R
A66: 9 | B66: Surface beds not exceeding 100mm thick | C66: m3 | D66: 1.00 | E66: R | F66: R
A68: 10 | B68: Surface beds exceeding 100mm thick and not exceeding 150mm thick | C68: m3 | D68: 1.00 | E68: R | F68: R
B70: Breaking down and removing brickwork including all steel door
B71: frames, window frames etc and carting to approved disposal area within the airport.
A73: 11 | B73: Half brick wall | C73: m2 | D73: 1.00 | E73: R | F73: R
A75: 12 | B75: One brick wall | C75: m2 | D75: 1.00 | E75: R | F75: R
B77: Taking up and removing vinyl floor coverings, tiles, carpets, etc
A79: 13 | B79: Ceramic / Porcelain / Marble tiles to floor including preparing floor for | C79: m2 | D79: 1.00 | E79: R | F79: R
B80: new floor covering
A82: 14 | B82: Vinyl / plastic / carpet floor covering including preparing floors for new floor coverings | C82: m2 | D82: 1.00 | E82: R | F82: R
B84: Hacking up and removing off coverings to walls, columns, partition
B85: walls etc. including preparing surfaces for new finishes
A87: 15 | B87: Tiles from walls, columns | C87: m2 | D87: 1.00 | E87: R | F87: R
A89: 16 | B89: Wall paper covering from walls, columns etc. | C89: m2 | D89: 1.00 | E89: R | F89: R
B91: Taking out / off and removing sundry metalwork
A93: 17 | B93: Stainless steel / mild steel barrier not exceeding 150mm diameter including vertical supports and making good to concrete to recieve new finish | C93: m | D93: 1.00 | E93: R | F93: R
B95: Taking out and removing doors, windows, etc, including thresholds, sills, etc (building up openings and making good finishes elsewhere)
A97: 18 | B97: Timber single door and steel frame not exceeding 2,5m² | C97: No | D97: 1.00 | E97: R | F97: R
A99: 19 | B99: Timber double door and steel frame exceeding 2,5m² and not exceeding 5m² | C99: No | D99: 1.00 | E99: R | F99: R
A101: 20 | B101: Timber double door and steel frame exceeding 5m² and not exceeding 7.5m² | C101: No | D101: 1.00 | E101: R | F101: R
A103: 21 | B103: Glazed aluminium window not exceeding 2,5m² | C103: No | D103: 1.00 | E103: R | F103: R
A105: 22 | B105: Glazed aluminium window exceeding 2,5m² and not exceeding 5m² | C105: No | D105: 1.00 | E105: R | F105: R
A107: 23 | B107: Glazed aluminium window exceeding 5m² and not exceeding 7.5m² | C107: No | D107: 1.00 | E107: R | F107: R
B109: Taking down and removing roofs, floors, panelling, ceilings, partitions, etc
A111: 24 | B111: Suspended ceilings, including suspension grid, hangers, cornices, etc | C111: m2 | D111: 1.00 | E111: R | F111: R
A113: 25 | B113: Drywall partitions not exceeding 3.0m high, including doors, glazed borrowed lights, etc | C113: m | D113: 1.00 | E113: R | F113: R
A115: 26 | B115: Toilet partitioning not exceeding 3.0 m high | C115: m2 | D115: 1.00 | E115: R | F115: R
B117: Taking out and removing sundry joinery work, fittings, etc
A119: 27 | B119: Cornices - various widths | C119: m | D119: 1.00 | E119: R | F119: R
A121: 28 | B121: Skirtings - various widths | C121: m | D121: 1.00 | E121: R | F121: R
A123: 29 | B123: Timber sills - various widths | C123: m | D123: 1.00 | E123: R | F123: R
A125: 30 | B125: Timber wall mounted cupboard - Measured by surface area covered on the wall | C125: m2 | D125: 1.00 | E125: R | F125: R
A127: 31 | B127: Timber floor mounted cupboard - Measured by surface area covered on the floor | C127: m2 | D127: 1.00 | E127: R | F127: R
A129: 32 | B129: Timber sink cupboard, including sink and disconnecting & terminating waste pipe - Measured by surface area covered on the floor | C129: m2 | D129: 1.00 | E129: R | F129: R
A131: 33 | B131: Timber/stone counters | C131: m2 | D131: 1.00 | E131: R | F131: R
B133: Taking out/off and removing sundry metalwork
A135: 34 | B135: Steel pipe handrails from walls, including brackets, and making good plaster finish | C135: m | D135: 1.00 | E135: R | F135: R
B137: Hacking up/off and removing granolithic, screeds, plaster, etc from concrete or brickwork and preparing surfaces for new screed, plaster, tile finishes, etc
A139: 35 | B139: Not exceeding 100mm thick Screed from floors | C139: m2 | D139: 1.00 | E139: R | F139: R
A141: 36 | B141: Internal plaster from walls and columns not exceeding 3m high | C141: m2 | D141: 1.00 | E141: R | F141: R
A143: 37 | B143: Internal plaster from ceilings and beams not exceding 3m high | C143: m2 | D143: 1.00 | E143: R | F143: R
A145: 38 | B145: External plaster from walls, columns and beams not exceeding 3m high | C145: m2 | D145: 1.00 | E145: R | F145: R
B147: PREPARATORY WORK TO EXISTING SURFACES
A149: 39 | B149: Hacking faces of existing concrete columns, beams, etc to receive plaster | C149: m2 | D149: 1.00 | E149: R | F149: R
A151: 40 | B151: Making good defects in existing screeded floors with "an approved self leveling screed" | C151: m2 | D151: 1.00 | E151: R | F151: R
B152: Materials paid for on a proven cost basis. (3rd party procurement)
B155: MAKING GOOD OF FINISHES ETC
B157: Making good face brickwork
A159: 41 | B159: Ends of half brick walls | C159: m | D159: 1.00 | E159: R | F159: R
B160: Materials paid for on a proven cost basis. (3rd party procurement)
A162: 42 | B162: Ends of one brick walls | C162: m | D162: 1.00 | E162: R | F162: R
B163: Materials paid for on a proven cost basis. (3rd party procurement)
A165: 43 | B165: Faces of walls where half brick cross walls removed | C165: m | D165: 1.00 | E165: R | F165: R
B166: Materials paid for on a proven cost basis. (3rd party procurement)
A168: 44 | B168: Faces of walls where one brick cross walls removed | C168: m | D168: 1.00 | E168: R | F168: R
B169: Materials paid for on a proven cost basis. (3rd party procurement)
B171: Making good gypsum plasterboard ceilings and timber brandering
A173: 45 | B173: Ceilings in patches | C173: m2 | D173: 1.00 | E173: R | F173: R
B174: Materials paid for on a proven cost basis. (3rd party procurement)
A176: 46 | B176: Ceilings where half brick walls removed | C176: m | D176: 1.00 | E176: R | F176: R
B177: Materials paid for on a proven cost basis. (3rd party procurement)
A179: 47 | B179: Ceilings where one brick walls removed | C179: m | D179: 1.00 | E179: R | F179: R
B180: Materials paid for on a proven cost basis. (3rd party procurement)
B182: Making good cement screeds
A184: 48 | B184: Not exceeding 100mm Thick on floors in patches | C184: m2 | D184: 1.00 | E184: R | F184: R
B185: Materials paid for on a proven cost basis. (3rd party procurement)
A187: 49 | B187: Floors where half brick walls removed | C187: m | D187: 1.00 | E187: R | F187: R
B188: Materials paid for on a proven cost basis. (3rd party procurement)
A190: 50 | B190: Floors where one brick walls removed | C190: m | D190: 1.00 | E190: R | F190: R
B191: Materials paid for on a proven cost basis. (3rd party procurement)
B193: Making good internal cement plaster
A195: 51 | B195: Walls in patches | C195: m2 | D195: 1.00 | E195: R | F195: R
B196: Materials paid for on a proven cost basis. (3rd party procurement)
A198: 52 | B198: Concrete ceilings in patches | C198: m2 | D198: 1.00 | E198: R | F198: R
B199: Materials paid for on a proven cost basis. (3rd party procurement)
A201: 53 | B201: Walls where half brick walls removed | C201: m | D201: 1.00 | E201: R | F201: R
B202: Materials paid for on a proven cost basis. (3rd party procurement)
A204: 54 | B204: Walls where one brick walls removed | C204: m | D204: 1.00 | E204: R | F204: R
B205: Materials paid for on a proven cost basis. (3rd party procurement)
A207: 55 | B207: Concrete ceilings where half brick walls removed | C207: m | D207: 1.00 | E207: R | F207: R
B208: Materials paid for on a proven cost basis. (3rd party procurement)
A210: 56 | B210: Concrete ceilings where one brick walls removed | C210: m | D210: 1.00 | E210: R | F210: R
B211: Materials paid for on a proven cost basis. (3rd party procurement)
B216: OPENINGS THROUGH EXISTING WALLS ETC
B218: Breaking out for and forming plain openings through brick walls, including prestressed concrete lintels, making good cement plaster on both sides and into reveals and with 20 MPa concrete thresholds with steel trowelled finish and making good.
A220: 57 | B220: Opening through half brick wall | C220: m2 | D220: 1.00 | E220: R | F220: R
A222: 58 | B222: Opening through one brick wall | C222: m2 | D222: 1.00 | E222: R | F222: R
B224: EXCAVATION, RISK OF COLLAPSE, FILLING, ETC
B226: NOTE: Tenderers are advised to study the Model Preambles for Trades
B227: before pricing this bill
B229: NOTE: Unless otherwise stated herein, all rates should include
B230: compensation for costs to execute the works whatever quantity is required
B231: and should provide for establishment, preliminary and general costs, and
B232: all other costs associated with the execution and supervision.
B234: The Client reserves the right to negotiate mutually agreed discounts on
B235: tendered rates for large quantities
B237: EXCAVATION, RISK OF COLLAPSE, FILLING, ETC
B239: Excavation in earth not exceeding 2m deep including carting to a
B240: stockpile
A242: 59 | B242: To trenches | C242: m3 | D242: 1.00 | E242: R | F242: R
A244: 60 | B244: To holes | C244: m3 | D244: 1.00 | E244: R | F244: R
A246: 61 | B246: Reduced levels under floors | C246: m3 | D246: 1.00 | E246: R | F246: R
B248: Excavation in earth exceeding 2m deep but ne. 4m including carting to a stockpile
A250: 62 | B250: To trenches | C250: m3 | D250: 1.00 | E250: R | F250: R
A252: 63 | B252: To holes | C252: m3 | D252: 1.00 | E252: R | F252: R
A254: 64 | B254: Reduced levels under floors | C254: m3 | D254: 1.00 | E254: R | F254: R
B256: Risk of collapse to sides of excavation n.e 2m deep
A258: 65 | B258: To trenches | C258: m2 | D258: 1.00 | E258: R | F258: R
A260: 66 | B260: To holes | C260: m2 | D260: 1.00 | E260: R | F260: R
B262: Risk of collapse to sides of excavation exceeding 2m but n.e 3.5m deep
A264: 67 | B264: To trenches | C264: m2 | D264: 1.00 | E264: R | F264: R
A266: 68 | B266: To holes | C266: m2 | D266: 1.00 | E266: R | F266: R
B273: Earth filling obtained from excavations and/or prescribed stock piles
B274: on site compacted to 93 % Mod AASHTO density
A276: 69 | B276: Under foundations, floors, steps, pavings, etc | C276: m3 | D276: 1.00 | E276: R | F276: R
B278: Earth filling supplied by contractor compacted to 93% Mod
B279: AASHTO density
A281: 70 | B281: Under floors, steps, paving, foundations, manholes etc | C281: m3 | D281: 1.00 | E281: R | F281: R
B282: Materials paid for on a proven cost basis. (3rd party procurement)
B284: CONCRETE, FORMWORK, REINFORCEMENT
B286: NOTE: Tenderers are advised to study the Model Preambles for Trades
B287: before pricing this bill
B289: NOTE: Unless otherwise stated herein, all rates should include
B290: compensation for costs to execute the works whatever quantity is required
B291: and should provide for establishment, preliminary and general costs, and
B292: all other costs associated with the execution and supervision.
B294: The Client reserves the right to negotiate mutually agreed discounts on
B295: tendered rates for large quantities
B297: 10 Mpa mass concrete
A299: 71 | B299: To strip footings, surface beds, blinding, paving, platforms, steps, bases, kerbing etc | C299: m3 | D299: 1.00 | E299: R | F299: R
B300: Materials paid for on a proven cost basis. (3rd party procurement)
B302: 20/25/30/35/40 MPa vibrated reinforced concrete
A304: 72 | B304: To foundations bases, manholes | C304: m3 | D304: 1.00 | E304: R | F304: R
B305: Materials paid for on a proven cost basis. (3rd party procurement)
A307: 73 | B307: To columns | C307: m3 | D307: 1.00 | E307: R | F307: R
B308: Materials paid for on a proven cost basis. (3rd party procurement)
A310: 74 | B310: To slabs | C310: m3 | D310: 1.00 | E310: R | F310: R
B311: Materials paid for on a proven cost basis. (3rd party procurement)
A313: 75 | B313: To beams | C313: m3 | D313: 1.00 | E313: R | F313: R
B314: Materials paid for on a proven cost basis. (3rd party procurement)
B316: TEST CUBES
A318: 76 | B318: Making and testing 150 x 150 x 150mm concrete strength test cube, testing and providing test results | C318: No | D318: 1.00 | E318: R | F318: R
B320: CONCRETE SUNDRIES
B322: Finishing top surfaces of concrete smooth with a wood float
A324: 77 | B324: Surface beds, slabs,beams, walls, paving etc | C324: m2 | D324: 1.00 | E324: R | F324: R
B326: Finishing top surfaces of concrete smooth with a steel trowel
A328: 78 | B328: Surface beds, slabs,beams, walls, paving etc | C328: m2 | D328: 1.00 | E328: R | F328: R
B332: Finishing top surfaces of concrete smooth with a power float
A334: 79 | B334: Surface beds, slabs,beams, walls, paving etc | C334: m2 | D334: 1.00 | E334: R | F334: R
B336: Rough formwork to sides
A338: 80 | B338: Edges , risers, ends and reveals not exceeding | C338: m | D338: 1.00 | E338: R | F338: R
B339: 300 mm high
B340: Materials paid for on a proven cost basis. (3rd party procurement)
A342: 81 | B342: To beams | C342: m2 | D342: 1.00 | E342: R | F342: R
B343: Materials paid for on a proven cost basis. (3rd party procurement)
B345: Smooth formwork to sides including supports etc.
A347: 82 | B347: To beams | C347: m2 | D347: 1.00 | E347: R | F347: R
B348: Materials paid for on a proven cost basis. (3rd party procurement)
A350: 83 | B350: To columns | C350: m2 | D350: 1.00 | E350: R | F350: R
B351: Materials paid for on a proven cost basis. (3rd party procurement)
A353: 84 | B353: To pits | C353: m2 | D353: 1.00 | E353: R | F353: R
B354: Materials paid for on a proven cost basis. (3rd party procurement)
A356: 85 | B356: To ramps | C356: m2 | D356: 1.00 | E356: R | F356: R
B357: Materials paid for on a proven cost basis. (3rd party procurement)
A359: 86 | B359: Smooth form to soffit of slab including mould oil | C359: m2 | D359: 1.00 | E359: R | F359: R
B360: Materials paid for on a proven cost basis. (3rd party procurement)
... 429 more rows
